fUST/lending_fUST_20240830
["ID","MTS","AMOUNT","RATE_DAILY","PERIOD"]
[336590268,1724959871156,-500.0,0.00021643,2]
[336590269,1724959871165,-3582.04,0.00021643,2]
[336590270,1724959871174,-10000.0,0.00021643,2]
[336590271,1724959871184,-10000.0,0.00021643,2]
[336590272,1724959871194,-1462.75,0.00021643,2]
[336590273,1724959871204,-7676.07,0.00021643,2]
[336590274,1724959871215,-151.0,0.00021643,2]
[336590275,1724959871225,-500.0,0.00021643,2]
[336590276,1724959871235,-500.0,0.00021643,2]
[336590277,1724959871244,-151.0,0.00021643,2]
[336590278,1724959871254,-535.44,0.00021643,2]
[336590279,1724959871264,-636.36,0.00021643,2]
[336590280,1724959871273,-500.0,0.00021643,2]
[336590281,1724959871285,-500.0,0.00021643,2]
[336590282,1724959871295,-1215.51,0.00021643,2]
[336590283,1724959871304,-500.0,0.00021643,2]
[336590284,1724959871314,-500.0,0.00021643,2]
[336590285,1724959871324,-1345.15,0.00021643,2]
[336590286,1724959871334,-2499.8,0.00021643,2]
[336590287,1724959871344,-1920.4,0.00021643,2]
[336590288,1724959871353,-2341.41,0.00021643,2]
[336590289,1724959871363,-500.0,0.00021643,2]
[336590290,1724959871375,-2245.67,0.00021643,2]
[336590291,1724959871385,-3653.88,0.00021643,2]
[336590292,1724959871398,-500.0,0.00021643,2]
[336590293,1724959871410,-1513.12,0.00021643,2]
[336590294,1724959871420,-225.47795429,0.00021643,2]
[336590295,1724959871432,-5015.805609,0.00021643,2]
[336590296,1724959871442,-1562.151045,0.00021643,2]
[336590297,1724959871452,-7125.4,0.00021643,2]
[336590298,1724959871462,-687.9,0.00021643,2]
[336590299,1724959871473,-2432.83,0.00021643,2]
[336590300,1724959871483,-500.0,0.00021643,2]
[336590301,1724959871492,-500.0,0.00021643,2]
[336590302,1724959871503,-5015.805609,0.00021643,2]
[336590303,1724959871513,-1562.151045,0.00021643,2]
[336590304,1724959871524,-1735.37,0.00021643,2]
[336590305,1724959871618,-500.0,0.00021643,2]
[336590306,1724959871629,-198.948511,0.00021643,2]
[336590307,1724959871640,-500.0,0.00021643,2]
[336590308,1724959871650,-1860.24,0.00021643,2]
[336590309,1724959871659,-1823.65,0.00021643,2]
[336590310,1724959871669,-198.948511,0.00021643,2]
[336590311,1724959871680,-151.0,0.00021643,2]
[336590312,1724959871689,-257.6600615,0.00021643,2]
[336590313,1724959871699,-1687.53,0.00021643,2]
[336590314,1724959871708,-500.0,0.00021643,2]
[336590315,1724959871717,-640.19,0.00021643,2]
[336590316,1724959871727,-1798.968384,0.00021643,2]
[336590317,1724959871736,-1798.968384,0.00021643,2]
[336590318,1724959871746,-692.81,0.00021643,2]
[336590319,1724959871756,-500.0,0.00021643,2]
[336590320,1724959871767,-7069.08,0.00021643,2]
[336590321,1724959871777,-500.0,0.00021643,2]
[336590322,1724959871789,-2819.92,0.00021643,2]
[336590323,1724959871799,-7852.79,0.00021643,2]
[336590324,1724959871809,-1778.75,0.00021643,2]
[336590325,1724959871818,-500.0,0.00021643,2]
[336590326,1724959871828,-500.173075,0.00021643,2]
[336590327,1724959871837,-151.0,0.00021643,2]
[336590328,1724959871847,-5307.89,0.00021643,2]
[336590329,1724959871856,-500.173081,0.00021643,2]
[336590330,1724959871866,-563.92,0.00021643,2]
[336590331,1724959871875,-563.48,0.00021643,2]
[336590332,1724959871885,-4411.53,0.00021643,2]
[336590333,1724959871895,-500.0,0.00021643,2]
[336590334,1724959871905,-810.09,0.00021643,2]
[336590335,1724959871914,-2550.65,0.000217,2]
[336590336,1724959871923,-500.0,0.00021917,2]
[336590337,1724959871933,-200.0,0.00021917,2]
[336590338,1724959871942,-500.0,0.00021917,2]
[336590339,1724959871952,-500.0,0.00021917,2]
[336590340,1724959871962,-500.0,0.00021917,2]
[336590341,1724959871972,-500.0,0.00021917,2]
[336590342,1724959871981,-500.0,0.00021917,2]
[336590343,1724959871991,-972.15,0.00021917,2]
[336590344,1724959872000,-500.0,0.00021917,2]
[336590345,1724959872010,-500.0,0.00021917,2]
[336590346,1724959872020,-568.31,0.00021917,2]
[336590347,1724959872032,-500.0,0.00021917,2]
[336590348,1724959872041,-500.0,0.00021917,2]
[336590349,1724959872051,-500.0,0.00021917,2]
[336590350,1724959872061,-886.8,0.00021917,2]
[336590351,1724959872070,-500.0,0.00021917,2]
[336590352,1724959872079,-591.56,0.00021917,2]
[336590353,1724959872090,-500.0,0.00021917,2]
[336590354,1724959872099,-500.0,0.00021917,2]
[336590355,1724959872108,-572.09,0.00021917,2]
[336590356,1724959872118,-507.64,0.00021917,2]
[336590357,1724959872129,-986.6,0.00021917,2]
[336590358,1724959872140,-668.17,0.00021917,2]
[336590359,1724959872150,-418.65,0.00021917,2]
[336590360,1724959872162,-1355.56,0.00021917,2]
[336590361,1724959872172,-776.41,0.00021917,2]
[336590362,1724959872181,-500.0,0.00021917,2]
[336590363,1724959872196,-829.52,0.00021917,2]
[336590364,1724959872206,-579.36,0.00021917,2]
[336590365,1724959872216,-293.401794,0.00021917,2]
[336590366,1724959872225,-605.81,0.00021917,2]
[336590367,1724959872238,-151.0,0.00021917,2]
[336590368,1724959872248,-836.77,0.00021917,2]
[336590369,1724959872257,-584.54,0.00021917,2]
[336590370,1724959872270,-500.7,0.00021917,2]
[336590371,1724959872281,-151.0,0.00021917,2]
[336590372,1724959872290,-151.0,0.00021917,2]
[336590373,1724959872300,-500.0,0.00021917,2]
[336590374,1724959872309,-1704.24,0.00021917,2]
[336590375,1724959872319,-500.0,0.00021917,2]
[336590376,1724959872329,-500.0,0.00021917,2]
[336590377,1724959872338,-1674.51,0.00021917,2]
[336590378,1724959872347,-377.37947878,0.00021917,2]
[336590379,1724959872357,-2011.91,0.00021917,2]
[336590380,1724959872366,-1578.86,0.00021917,2]
[336590381,1724959872376,-1943.11,0.00021917,2]
[336590382,1724959872386,-500.0,0.00021917,2]
[336590383,1724959872396,-500.0,0.00021917,2]
[336590384,1724959872406,-3148.43,0.00021917,2]
[336590385,1724959872415,-1722.01,0.00021917,2]
[336590386,1724959872425,-2200.88,0.00021917,2]
[336590387,1724959872435,-10005.23,0.00021917,2]
[336590388,1724959872445,-1758.17,0.00021917,2]
[336590389,1724959872454,-500.0,0.00021917,2]
[336590390,1724959872464,-500.0,0.00021917,2]
[336590391,1724959872473,-4039.87,0.00021917,2]
[336590392,1724959872483,-2874.84,0.00021917,2]
[336590393,1724959872493,-6955.28,0.00021917,2]
[336590394,1724959872502,-8645.87,0.00021917,2]
[336590395,1724959872512,-7860.36,0.00021917,2]
[336590396,1724959872522,-3052.09,0.00021917,2]
[336590397,1724959872531,-526.41,0.00021917,2]
[336590398,1724959872541,-1992.41,0.00021917,2]
[336590399,1724959872551,-2047.97,0.00021917,2]
[336590400,1724959872561,-1568.45,0.00021917,2]
[336590401,1724959872570,-1562.05,0.00021917,2]
[336590402,1724959872580,-500.0,0.00021917,2]
[336590403,1724959872590,-500.0,0.00021917,2]
[336590404,1724959872600,-245.107805,0.00021917,2]
[336590405,1724959872609,-389.36,0.00021917,2]
[336590406,1724959872620,-283.389656,0.00021917,2]
[336590407,1724959872630,-2122.12,0.00021917,2]
[336590408,1724959872640,-864.74,0.00021917,2]
[336590409,1724959872650,-10000.0,0.00021917,2]
[336590410,1724959872660,-283.389656,0.00021917,2]
[336590411,1724959872670,-727.36,0.00021917,2]
[336590412,1724959872680,-500.0,0.00021917,2]
[336590413,1724959872690,-3582.04,0.00021917,2]
[336590414,1724959872700,-10000.0,0.00021917,2]
[336590415,1724959872710,-10000.0,0.00021917,2]
[336590416,1724959872719,-1462.75,0.00021917,2]
[336590417,1724959872729,-7676.07,0.00021917,2]
[336590418,1724959872739,-500.0,0.00021917,2]
[336590419,1724959872749,-500.0,0.00021917,2]
[336590420,1724959872760,-535.44,0.00021917,2]
[336590421,1724959872770,-636.36,0.00021917,2]
[336590422,1724959872781,-500.0,0.00021917,2]
[336590423,1724959872791,-500.0,0.00021917,2]
[336590424,1724959872802,-1215.51,0.00021917,2]
[336590425,1724959872811,-500.0,0.00021917,2]
[336590426,1724959872822,-500.0,0.00021917,2]
[336590427,1724959872831,-1345.15,0.00021917,2]
[336590428,1724959872842,-2499.8,0.00021917,2]
[336590429,1724959872851,-1920.4,0.00021917,2]
[336590430,1724959872862,-2341.41,0.00021917,2]
[336590431,1724959872872,-500.0,0.00021917,2]
[336590432,1724959872882,-2245.67,0.00021917,2]
[336590433,1724959872893,-3653.88,0.00021917,2]
[336590434,1724959872903,-500.0,0.00021917,2]
[336590435,1724959872912,-1513.12,0.00021917,2]
[336590436,1724959872922,-7125.4,0.00021917,2]
[336590437,1724959872932,-687.9,0.00021917,2]
[336590438,1724959872942,-2432.83,0.00021917,2]
[336590439,1724959872952,-500.0,0.00021917,2]
[336590440,1724959872961,-500.0,0.00021917,2]
[336590441,1724959872971,-1735.37,0.00021917,2]
[336590442,1724959872981,-500.0,0.00021917,2]
[336590443,1724959872991,-500.0,0.00021917,2]
[336590444,1724959873000,-1860.24,0.00021917,2]
[336590445,1724959873010,-1823.65,0.00021917,2]
[336590446,1724959873019,-1687.53,0.00021917,2]
[336590447,1724959873028,-500.0,0.00021917,2]
[336590448,1724959873039,-640.19,0.00021917,2]
[336590449,1724959873049,-692.81,0.00021917,2]
[336590450,1724959873058,-500.0,0.00021917,2]
[336590451,1724959873068,-7069.08,0.00021917,2]
[336590452,1724959873077,-426.2544787,0.00021917,2]
[336590453,1724959873088,-2819.92,0.00021917,2]
[336590454,1724959873098,-7852.79,0.00021917,2]
[336590455,1724959873108,-1778.75,0.00021917,2]
[336590456,1724959873117,-500.0,0.00021917,2]
[336590457,1724959873127,-5307.89,0.00021917,2]
[336590458,1724959873136,-563.92,0.00021917,2]
[336590459,1724959873145,-563.48,0.00021917,2]
[336590460,1724959873154,-4411.53,0.00021917,2]
[336590461,1724959873164,-500.0,0.00021917,2]
[336590462,1724959873174,-810.09,0.00021917,2]
[336590463,1724959873184,-151.0,0.00021918,2]
[336590464,1724959873193,-151.0,0.00021918,2]
[336590465,1724959873204,-151.0,0.00021918,2]
[336590466,1724959873214,-151.0,0.00021918,2]
[336590467,1724959873223,-151.0,0.00021918,2]
[336590468,1724959873234,-166.448014,0.00021918,2]
[336590469,1724959873244,-151.0,0.00021918,2]
[336590470,1724959873255,-159.403807,0.00021918,2]
[336590471,1724959873265,-160.0,0.00021918,2]
[336590472,1724959873275,-160.0,0.00021918,2]
[336590473,1724959873286,-261.53152586,0.00021918,2]
[336590474,1724959873296,-160.11795105,0.00021918,2]
[336590475,1724959873305,-1562.151045,0.00021918,7]
[336590476,1724959873315,-1562.151045,0.00021918,7]
[336590477,1724959873324,-198.948511,0.00021918,7]
[336590478,1724959873334,-198.948511,0.00021918,7]
[336590479,1724959873422,-151.0,0.00021918,7]
[336590480,1724959873432,-1798.968384,0.00021918,7]
[336590481,1724959873441,-1798.968384,0.00021918,7]
[336590482,1724959873450,-465.21821682,0.00021939,2]
[336590483,1724959873461,-74490.12,0.00022,14]
[336590484,1724959873470,-151.0,0.00022,7]
[336590485,1724959873480,-151.0,0.00022,7]
[336590486,1724959873490,-5672.749772,0.00022,7]
[336590487,1724959873499,-5672.749772,0.00022,7]
[336590488,1724959873509,-5094.968618,0.00022,7]
[336590489,1724959873519,-5094.968618,0.00022,7]
[336590490,1724959873529,-5511.193121,0.00022,7]
[336590491,1724959873540,-5511.193121,0.00022,7]
[336590492,1724959873550,-273.471213,0.00022,7]
[336590493,1724959873560,-273.471213,0.00022,7]
[336590494,1724959873570,-2516.329952,0.00022,7]
[336590495,1724959873580,-1778.974224,0.00022,7]
[336590496,1724959873589,-2516.329952,0.00022,7]
[336590497,1724959873599,-1778.974224,0.00022,7]
[336590498,1724959873608,-151.0,0.00022,7]
[336590499,1724959873618,-224.775994,0.00022,7]
[336590500,1724959873628,-5015.805609,0.00022,7]
[336590501,1724959873637,-5015.805608,0.00022,7]
[336590502,1724959873648,-2000.0,0.00022024,2]
[336590503,1724959873657,-155.0,0.0002212,7]
[336590504,1724959873667,-500.0,0.00022191,5]
[336590505,1724959873676,-205.72,0.00022191,5]
[336590506,1724959873686,-151.0,0.00022191,2]
[336590507,1724959873696,-500.0,0.00022191,5]
[336590508,1724959873706,-500.0,0.00022191,5]
[336590509,1724959873716,-468.2124918,0.00022191,5]
[336590510,1724959873726,-500.0,0.00022191,5]
[336590511,1724959873736,-500.0,0.00022191,5]
[336590512,1724959873745,-972.15,0.00022191,5]
[336590513,1724959873755,-500.0,0.00022191,5]
[336590514,1724959873765,-500.0,0.00022191,5]
[336590515,1724959873775,-568.31,0.00022191,5]
[336590516,1724959873784,-500.0,0.00022191,5]
[336590517,1724959873794,-170.58,0.00022191,5]
[336590518,1724959873803,-210.55519294,0.00022191,5]
[336590519,1724959873812,-886.8,0.00022191,5]
[336590520,1724959873821,-500.0,0.00022191,5]
[336590521,1724959873831,-591.56,0.00022191,5]
[336590522,1724959873840,-500.0,0.00022191,5]
[336590523,1724959873850,-500.0,0.00022191,5]
[336590524,1724959873859,-572.09,0.00022191,5]
[336590525,1724959873869,-507.64,0.00022191,5]
[336590526,1724959873878,-986.6,0.00022191,5]
[336590527,1724959873887,-236.286025,0.00022191,7]
[336590528,1724959873896,-668.17,0.00022191,5]
[336590529,1724959873906,-1355.56,0.00022191,5]
[336590530,1724959873915,-776.41,0.00022191,5]
[336590531,1724959873925,-500.0,0.00022191,5]
[336590532,1724959873935,-829.52,0.00022191,5]
[336590533,1724959873944,-579.36,0.00022191,5]
[336590534,1724959873953,-605.81,0.00022191,5]
[336590535,1724959873966,-836.77,0.00022191,5]
[336590536,1724959873976,-584.54,0.00022191,5]
[336590537,1724959873986,-500.7,0.00022191,5]
[336590538,1724959873995,-500.0,0.00022191,5]
[336590539,1724959874005,-231.491231,0.00022191,7]
[336590540,1724959874014,-231.491231,0.00022191,7]
[336590541,1724959874023,-151.0,0.00022191,7]
[336590542,1724959874033,-1704.24,0.00022191,5]
[336590543,1724959874043,-500.0,0.00022191,5]
[336590544,1724959874053,-500.0,0.00022191,5]
[336590545,1724959874062,-1674.51,0.00022191,5]
[336590546,1724959874071,-2011.91,0.00022191,5]
[336590547,1724959874081,-1578.86,0.00022191,5]
[336590548,1724959874091,-1943.11,0.00022191,5]
[336590549,1724959874100,-500.0,0.00022191,5]
[336590550,1724959874110,-500.0,0.00022191,5]
[336590551,1724959874119,-3148.43,0.00022191,5]
[336590552,1724959874129,-1722.01,0.00022191,5]
[336590553,1724959874140,-2200.88,0.00022191,5]
[336590554,1724959874150,-10005.23,0.00022191,5]
[336590555,1724959874160,-1758.17,0.00022191,5]
[336590556,1724959874169,-500.0,0.00022191,5]
[336590557,1724959874178,-554.78,0.00022191,5]
[336590558,1724959874189,-4039.87,0.00022191,5]
[336590559,1724959874199,-2874.84,0.00022191,5]
[336590560,1724959874213,-6955.28,0.00022191,5]
[336590561,1724959874223,-8645.87,0.00022191,5]
[336590562,1724959874234,-7860.36,0.00022191,5]
[336590563,1724959874243,-3052.09,0.00022191,5]
[336590564,1724959874252,-526.41,0.00022191,5]
[336590565,1724959874263,-1992.41,0.00022191,5]
[336590566,1724959874274,-2047.97,0.00022191,5]
[336590567,1724959874285,-1568.45,0.00022191,5]
[336590568,1724959874294,-1562.05,0.00022191,5]
[336590569,1724959874303,-500.0,0.00022191,5]
[336590570,1724959874313,-500.0,0.00022191,5]
[336590571,1724959874322,-283.389656,0.00022191,7]
[336590572,1724959874332,-2122.12,0.00022191,5]
[336590573,1724959874341,-864.74,0.00022191,5]
[336590574,1724959874351,-10000.0,0.00022191,7]
[336590575,1724959874360,-283.389656,0.00022191,7]
[336590576,1724959874369,-727.36,0.00022191,5]
[336590577,1724959874379,-500.0,0.00022191,5]
[336590578,1724959874389,-3582.04,0.00022191,5]
[336590579,1724959874398,-10000.0,0.00022191,7]
[336590580,1724959874409,-10000.0,0.00022191,7]
[336590581,1724959874419,-1462.75,0.00022191,5]
[336590582,1724959874428,-7676.07,0.00022191,5]
[336590583,1724959874438,-500.0,0.00022191,5]
[336590584,1724959874448,-500.0,0.00022191,5]
[336590585,1724959874458,-535.44,0.00022191,5]
[336590586,1724959874467,-636.36,0.00022191,5]
[336590587,1724959874477,-185.97130107,0.00022191,5]
[336590588,1724959874487,-500.0,0.00022191,5]
[336590589,1724959874498,-1215.51,0.00022191,5]
[336590590,1724959874508,-500.0,0.00022191,5]
[336590591,1724959874518,-500.0,0.00022191,5]
[336590592,1724959874528,-1345.15,0.00022191,5]
[336590593,1724959874541,-2499.8,0.00022191,5]
[336590594,1724959874552,-1920.4,0.00022191,5]
[336590595,1724959874561,-2341.41,0.00022191,5]
[336590596,1724959874571,-500.0,0.00022191,5]
[336590597,1724959874581,-2245.67,0.00022191,5]
[336590598,1724959874590,-3653.88,0.00022191,5]
[336590599,1724959874600,-500.0,0.00022191,5]
[336590600,1724959874610,-1513.12,0.00022191,5]
[336590601,1724959874620,-7125.4,0.00022191,5]
[336590602,1724959874629,-687.9,0.00022191,5]
[336590603,1724959874639,-500.0,0.00022191,5]
[336590604,1724959874649,-2432.83,0.00022191,5]
[336590605,1724959874659,-500.0,0.00022191,5]
[336590606,1724959874668,-1735.37,0.00022191,5]
[336590607,1724959874677,-500.0,0.00022191,5]
[336590608,1724959874687,-500.0,0.00022191,5]
[336590609,1724959874696,-1860.24,0.00022191,5]
[336590610,1724959874706,-1823.65,0.00022191,5]
[336590611,1724959874716,-1687.53,0.00022191,5]
[336590612,1724959874726,-500.0,0.00022191,5]
[336590613,1724959874735,-640.19,0.00022191,5]
[336590614,1724959874746,-692.81,0.00022191,5]
[336590615,1724959874756,-7069.08,0.00022191,5]
[336590616,1724959874766,-500.0,0.00022191,5]
[336590617,1724959874776,-2819.92,0.00022191,5]
[336590618,1724959874790,-7852.79,0.00022191,5]
[336590619,1724959874800,-1778.75,0.00022191,5]
[336590620,1724959874810,-500.0,0.00022191,5]
[336590621,1724959874820,-5307.89,0.00022191,5]
[336590622,1724959874829,-563.92,0.00022191,5]
[336590623,1724959874840,-563.48,0.00022191,5]
[336590624,1724959874849,-4411.53,0.00022191,5]
[336590625,1724959874860,-500.0,0.00022191,5]
[336590626,1724959874869,-810.09,0.00022191,5]
[336590627,1724959874879,-500.0,0.00022465,5]
[336590628,1724959874888,-154.86740392,0.00022465,5]
[336590629,1724959874898,-500.0,0.00022465,5]
[336590630,1724959874907,-500.0,0.00022465,5]
[336590631,1724959874916,-500.0,0.00022465,5]
[336590632,1724959874926,-972.15,0.00022465,5]
[336590633,1724959874936,-500.0,0.00022465,5]
[336590634,1724959874946,-500.0,0.00022465,5]
[336590635,1724959874955,-568.31,0.00022465,5]
[336590636,1724959874964,-500.0,0.00022465,5]
[336590637,1724959874974,-886.8,0.00022465,5]
[336590638,1724959874984,-500.0,0.00022465,5]
[336590639,1724959875070,-591.56,0.00022465,5]
[336590640,1724959875080,-500.0,0.00022465,5]
[336590641,1724959875091,-246.19619874,0.00022465,5]
[336590642,1724959875100,-572.09,0.00022465,5]
[336590643,1724959875110,-507.64,0.00022465,5]
[336590644,1724959875120,-986.6,0.00022465,5]
[336590645,1724959875129,-668.17,0.00022465,5]
[336590646,1724959875138,-1355.56,0.00022465,5]
[336590647,1724959875147,-776.41,0.00022465,5]
[336590648,1724959875157,-500.0,0.00022465,5]
[336590649,1724959875166,-829.52,0.00022465,5]
[336590650,1724959875176,-579.36,0.00022465,5]
[336590651,1724959875185,-605.81,0.00022465,5]
[336590652,1724959875198,-836.77,0.00022465,5]
[336590653,1724959875207,-584.54,0.00022465,5]
[336590654,1724959875217,-500.7,0.00022465,5]
[336590655,1724959875226,-151.0,0.00022465,7]
[336590656,1724959875238,-151.0,0.00022465,7]
[336590657,1724959875247,-500.0,0.00022465,5]
[336590658,1724959875256,-1704.24,0.00022465,5]
[336590659,1724959875265,-472.16545659,0.00022465,5]
[336590660,1724959875274,-500.0,0.00022465,5]
[336590661,1724959875287,-1674.51,0.00022465,5]
[336590662,1724959875297,-2011.91,0.00022465,5]
[336590663,1724959875306,-1578.86,0.00022465,5]
[336590664,1724959875315,-5672.749772,0.00022465,7]
[336590665,1724959875324,-5672.749772,0.00022465,7]
[336590666,1724959875334,-5094.968618,0.00022465,7]
[336590667,1724959875344,-5094.968618,0.00022465,7]
[336590668,1724959875353,-1943.11,0.00022465,5]
[336590669,1724959875362,-500.0,0.00022465,5]
[336590670,1724959875371,-500.0,0.00022465,5]
[336590671,1724959875381,-3148.43,0.00022465,5]
[336590672,1724959875391,-5511.193121,0.00022465,7]
[336590673,1724959875401,-5511.193121,0.00022465,7]
[336590674,1724959875410,-1722.01,0.00022465,5]
[336590675,1724959875420,-2200.88,0.00022465,5]
[336590676,1724959875430,-10005.23,0.00022465,5]
[336590677,1724959875439,-1758.17,0.00022465,5]
[336590678,1724959875448,-500.0,0.00022465,5]
[336590679,1724959875458,-4039.87,0.00022465,5]
[336590680,1724959875467,-2874.84,0.00022465,5]
[336590681,1724959875476,-6955.28,0.00022465,5]
[336590682,1724959875485,-8645.87,0.00022465,5]
[336590683,1724959875495,-7860.36,0.00022465,5]
[336590684,1724959875504,-3052.09,0.00022465,5]
[336590685,1724959875513,-273.471213,0.00022465,7]
[336590686,1724959875523,-526.41,0.00022465,5]
[336590687,1724959875532,-273.471213,0.00022465,7]
[336590688,1724959875542,-1992.41,0.00022465,5]
[336590689,1724959875551,-2516.329952,0.00022465,7]
[336590690,1724959875561,-1568.45,0.00022465,5]
[336590691,1724959875570,-2047.97,0.00022465,5]
[336590692,1724959875579,-2516.329952,0.00022465,7]
[336590693,1724959875589,-1562.05,0.00022465,5]
[336590694,1724959875599,-500.0,0.00022465,5]
[336590695,1724959875609,-500.0,0.00022465,5]
[336590696,1724959875619,-2122.12,0.00022465,5]
[336590697,1724959875628,-864.74,0.00022465,5]
[336590698,1724959875637,-727.36,0.00022465,5]
[336590699,1724959875648,-500.0,0.00022465,5]
[336590700,1724959875658,-3582.04,0.00022465,5]
[336590701,1724959875668,-1462.75,0.00022465,5]
[336590702,1724959875677,-7676.07,0.00022465,5]
[336590703,1724959875687,-151.0,0.00022465,7]
[336590704,1724959875696,-500.0,0.00022465,5]
[336590705,1724959875706,-500.0,0.00022465,5]
[336590706,1724959875716,-535.44,0.00022465,5]
[336590707,1724959875726,-636.36,0.00022465,5]
[336590708,1724959875737,-500.0,0.00022465,5]
[336590709,1724959875746,-1215.51,0.00022465,5]
[336590710,1724959875756,-500.0,0.00022465,5]
[336590711,1724959875765,-500.0,0.00022465,5]
[336590712,1724959875775,-1345.15,0.00022465,5]
[336590713,1724959875786,-2499.8,0.00022465,5]
[336590714,1724959875795,-1920.4,0.00022465,5]
[336590715,1724959875805,-2341.41,0.00022465,5]
[336590716,1724959875815,-500.0,0.00022465,5]
[336590717,1724959875826,-2245.67,0.00022465,5]
[336590718,1724959875836,-3653.88,0.00022465,5]
[336590719,1724959875845,-500.0,0.00022465,5]
[336590720,1724959875855,-1513.12,0.00022465,5]
[336590721,1724959875865,-7125.4,0.00022465,5]
[336590722,1724959875875,-1562.151045,0.00022465,7]
[336590723,1724959875884,-687.9,0.00022465,5]
[336590724,1724959875894,-500.0,0.00022465,5]
[336590725,1724959875903,-2432.83,0.00022465,5]
[336590726,1724959875913,-500.0,0.00022465,5]
[336590727,1724959875924,-1562.15104207,0.00022465,7]
[336590728,1724959875934,-1735.37,0.00022465,5]
[336590729,1724959875944,-500.0,0.00022465,5]
[336590730,1724959875955,-198.948511,0.00022465,7]
[336590731,1724959875964,-500.0,0.00022465,5]
[336590732,1724959875974,-1860.24,0.00022465,5]
[336590733,1724959875984,-198.948503,0.00022465,7]
[336590734,1724959875993,-1823.65,0.00022465,5]
[336590735,1724959876003,-151.0,0.00022465,7]
[336590736,1724959876012,-1687.53,0.00022465,5]
[336590737,1724959876022,-500.0,0.00022465,5]
[336590738,1724959876031,-640.19,0.00022465,5]
[336590739,1724959876043,-1798.968384,0.00022465,7]
[336590741,1724959876052,-1798.968381,0.00022465,7]
[336590742,1724959876061,-692.81,0.00022465,5]
[336590743,1724959876071,-7069.08,0.00022465,5]
[336590744,1724959876080,-500.0,0.00022465,5]
[336590745,1724959876089,-2819.92,0.00022465,5]
[336590746,1724959876099,-7852.79,0.00022465,5]
[336590747,1724959876108,-1778.75,0.00022465,5]
[336590748,1724959876117,-355.75596074,0.00022465,5]
[336590749,1724959876127,-5307.89,0.00022465,5]
[336590750,1724959876136,-563.92,0.00022465,5]
[336590751,1724959876145,-563.48,0.00022465,5]
[336590752,1724959876155,-4411.53,0.00022465,5]
[336590753,1724959876164,-500.0,0.00022465,5]
[336590754,1724959876174,-810.09,0.00022465,5]
[336590755,1724959876184,-823.0,0.00022626,2]
[336590756,1724959876193,-500.0,0.00022739,5]
[336590757,1724959876205,-203.65,0.00022739,5]
[336590758,1724959876215,-500.0,0.00022739,5]
[336590759,1724959876225,-500.0,0.00022739,5]
[336590760,1724959876235,-972.15,0.00022739,5]
[336590761,1724959876246,-500.0,0.00022739,5]
[336590762,1724959876255,-311.9366764,0.00022739,5]
[336590763,1724959876264,-568.31,0.00022739,5]
[336590764,1724959876274,-500.0,0.00022739,5]
[336590765,1724959876285,-886.8,0.00022739,5]
[336590766,1724959876296,-500.0,0.00022739,5]
[336590767,1724959876305,-591.56,0.00022739,5]
[336590768,1724959876315,-500.0,0.00022739,5]